[Event "Titled Tuesday Blitz July 26 Early 2022"]
[White "Kuderinov, Kirill"]
[Black "Andreikin, Dmitry"]
[WhiteFideId "13701568"]
[BlackFideId "4158814"]
[WhiteElo "2465"]
[BlackElo "2736"]
[Result "0-1"]
[Round "06"]
[TimeControl "180+1"]
[Date "2022.07.26"]
[WhiteClock "0:00:07"]
[BlackClock "0:01:00"]

1. e4 {[%clk 0:02:58]}  c5 {[%clk 0:02:59]} 2. Nf3 {[%clk 0:02:58]}  e6 {[%clk 0:03:00]} 3. d4 {[%clk 0:02:56]}  cxd4 {[%clk 0:03:01]} 4. Nxd4 {[%clk 0:02:56]}  Nc6 {[%clk 0:03:01]} 5. Nc3 {[%clk 0:02:56]}  Qc7 {[%clk 0:03:02]} 6. Be3 {[%clk 0:02:50]}  a6 {[%clk 0:03:02]} 7. Bd3 {[%clk 0:02:50]}  Nf6 {[%clk 0:03:02]} 8. O-O {[%clk 0:02:49]}  Bd6 {[%clk 0:03:02]} 9. h3 {[%clk 0:02:47]}  O-O {[%clk 0:03:02]} 10. Nxc6 {[%clk 0:02:46]}  dxc6 {[%clk 0:03:00]} 11. f4 {[%clk 0:02:45]}  e5 {[%clk 0:03:01]} 12. f5 {[%clk 0:02:45]}  b5 {[%clk 0:03:01]} 13. g4 {[%clk 0:02:43]}  b4 {[%clk 0:02:58]} 14. g5 {[%clk 0:02:42]}  Nd7 {[%clk 0:02:54]} 15. Ne2 {[%clk 0:02:37]}  Bc5 {[%clk 0:02:54]} 16. Bxc5 {[%clk 0:02:32]}  Nxc5 {[%clk 0:02:54]} 17. Ng3 {[%clk 0:02:27]}  Rd8 {[%clk 0:02:52]} 18. Qf3 {[%clk 0:02:26]}  Qd6 {[%clk 0:02:48]} 19. Rad1 {[%clk 0:02:24]}  Qd4+ {[%clk 0:02:47]} 20. Rf2 {[%clk 0:02:21]}  Qxb2 {[%clk 0:02:46]} 21. Qh5 {[%clk 0:02:04]}  Nxd3 {[%clk 0:02:19]} 22. cxd3 {[%clk 0:02:02]}  Qd4 {[%clk 0:02:19]} 23. f6 {[%clk 0:01:57]}  Qe3 {[%clk 0:02:08]} 24. Kg2 {[%clk 0:01:47]}  Be6 {[%clk 0:01:56]} 25. fxg7 {[%clk 0:01:43]}  Rd6 {[%clk 0:01:43]} 26. Rf3 {[%clk 0:01:35]}  Qc5 {[%clk 0:01:42]} 27. Rdf1 {[%clk 0:01:29]}  Ra7 {[%clk 0:01:42]} 28. Qh6 {[%clk 0:01:23]}  Bxa2 {[%clk 0:01:27]} 29. Rf6 {[%clk 0:01:09]}  Rxf6 {[%clk 0:01:26]} 30. gxf6 {[%clk 0:01:04]}  Be6 {[%clk 0:01:18]} 31. Rc1 {[%clk 0:00:46]}  Qd6 {[%clk 0:01:15]} 32. Qe3 {[%clk 0:00:19]}  Rb7 {[%clk 0:01:15]} 33. Rf1 {[%clk 0:00:17]}  b3 {[%clk 0:01:12]} 34. Qh6 {[%clk 0:00:15]}  Qxd3 {[%clk 0:01:04]} 35. Rf5 {[%clk 0:00:07]}  Bxf5 {[%clk 0:01:01]} 36. Nxf5 {[%clk 0:00:07]}  Qxe4+ {[%clk 0:01:00]} 0-1


[Site "https://www.chess.com"]

[Event "Titled Tuesday Blitz July 26 Early 2022"]
[White "Maksimovic, Bojan"]
[Black "Abdyzhapar, Asylbek"]
[WhiteFideId "14408120"]
[BlackFideId "13800337"]
[WhiteElo "2453"]
[BlackElo "2323"]
[Result "1-0"]
[Round "06"]
[TimeControl "180+1"]
[Date "2022.07.26"]
[WhiteClock "0:00:30"]
[BlackClock "0:00:49"]

1. e4 {[%clk 0:03:00]}  c6 {[%clk 0:02:12]} 2. Nf3 {[%clk 0:03:00]}  d5 {[%clk 0:02:12]} 3. d3 {[%clk 0:03:00]}  dxe4 {[%clk 0:02:12]} 4. dxe4 {[%clk 0:03:01]}  Qxd1+ {[%clk 0:02:12]} 5. Kxd1 {[%clk 0:03:02]}  Nf6 {[%clk 0:02:12]} 6. Nfd2 {[%clk 0:03:02]}  g5 {[%clk 0:02:12]} 7. a4 {[%clk 0:02:49]}  h5 {[%clk 0:02:09]} 8. h4 {[%clk 0:02:46]}  g4 {[%clk 0:02:09]} 9. f3 {[%clk 0:02:45]}  Nbd7 {[%clk 0:02:08]} 10. Na3 {[%clk 0:02:30]}  Ne5 {[%clk 0:02:06]} 11. f4 {[%clk 0:02:28]}  Ng6 {[%clk 0:02:06]} 12. g3 {[%clk 0:02:29]}  e5 {[%clk 0:01:59]} 13. f5 {[%clk 0:02:25]}  Ne7 {[%clk 0:01:58]} 14. Nac4 {[%clk 0:02:23]}  Nxf5 {[%clk 0:01:51]} 15. exf5 {[%clk 0:02:22]}  Bxf5 {[%clk 0:01:52]} 16. Bd3 {[%clk 0:02:15]}  e4 {[%clk 0:01:46]} 17. Rf1 {[%clk 0:02:06]}  Be6 {[%clk 0:01:35]} 18. Rxf6 {[%clk 0:02:00]}  exd3 {[%clk 0:01:34]} 19. cxd3 {[%clk 0:02:01]}  O-O-O {[%clk 0:01:33]} 20. Kc2 {[%clk 0:02:01]}  Bg7 {[%clk 0:01:31]} 21. Rf1 {[%clk 0:01:59]}  Rd5 {[%clk 0:01:25]} 22. Ne4 {[%clk 0:01:51]}  Rhd8 {[%clk 0:01:25]} 23. Ra3 {[%clk 0:01:48]}  b5 {[%clk 0:01:05]} 24. axb5 {[%clk 0:01:45]}  cxb5 {[%clk 0:01:05]} 25. Ne3 {[%clk 0:01:36]}  b4 {[%clk 0:01:05]} 26. Rxa7 {[%clk 0:01:09]}  b3+ {[%clk 0:01:05]} 27. Kb1 {[%clk 0:01:00]}  Rxd3 {[%clk 0:01:05]} 28. Nc5 {[%clk 0:00:52]}  R3d6 {[%clk 0:00:55]} 29. Nxe6 {[%clk 0:00:47]}  Rxe6 {[%clk 0:00:55]} 30. Ra8+ {[%clk 0:00:32]}  Kd7 {[%clk 0:00:49]} 31. Rxf7+ {[%clk 0:00:32]}  Re7 {[%clk 0:00:49]} 32. Ra7+ {[%clk 0:00:30]} 1-0


[Site "https://www.chess.com"]

[Event "Titled Tuesday Blitz July 26 Early 2022"]
[White "Martin Barcelo, Carles"]
[Black "Olivares Olivares, Claudio"]
[WhiteFideId "24561444"]
[BlackFideId "3400786"]
[WhiteElo "1922"]
[BlackElo "2249"]
[Result "0-1"]
[Round "06"]
[TimeControl "180+1"]
[Date "2022.07.27"]
[WhiteClock "0:00:02"]
[BlackClock "0:00:05"]

1. e4 {[%clk 0:02:43]}  c5 {[%clk 0:02:59]} 2. Nf3 {[%clk 0:02:43]}  d6 {[%clk 0:02:59]} 3. g3 {[%clk 0:02:35]}  Nf6 {[%clk 0:02:59]} 4. Qe2 {[%clk 0:02:35]}  Nc6 {[%clk 0:02:59]} 5. c3 {[%clk 0:02:35]}  e5 {[%clk 0:02:58]} 6. Bg2 {[%clk 0:02:35]}  Be7 {[%clk 0:02:55]} 7. O-O {[%clk 0:02:35]}  O-O {[%clk 0:02:55]} 8. Rd1 {[%clk 0:02:36]}  Bg4 {[%clk 0:02:50]} 9. h3 {[%clk 0:02:36]}  Bxf3 {[%clk 0:02:50]} 10. Qxf3 {[%clk 0:02:35]}  Nd7 {[%clk 0:02:47]} 11. h4 {[%clk 0:02:31]}  g6 {[%clk 0:02:44]} 12. Bh3 {[%clk 0:02:25]}  c4 {[%clk 0:02:37]} 13. d4 {[%clk 0:02:14]}  cxd3 {[%clk 0:02:35]} 14. Qxd3 {[%clk 0:02:10]}  Nc5 {[%clk 0:02:34]} 15. Qf3 {[%clk 0:02:03]}  Qb6 {[%clk 0:02:04]} 16. b4 {[%clk 0:01:59]}  Ne6 {[%clk 0:02:03]} 17. Bh6 {[%clk 0:02:00]}  Rfe8 {[%clk 0:02:01]} 18. Bxe6 {[%clk 0:01:44]}  fxe6 {[%clk 0:02:00]} 19. h5 {[%clk 0:01:45]}  Bf8 {[%clk 0:01:55]} 20. Be3 {[%clk 0:01:45]}  Qc7 {[%clk 0:01:53]} 21. hxg6 {[%clk 0:01:28]}  hxg6 {[%clk 0:01:54]} 22. Qg4 {[%clk 0:01:27]}  Qf7 {[%clk 0:01:54]} 23. Nd2 {[%clk 0:01:23]}  d5 {[%clk 0:01:51]} 24. Nb3 {[%clk 0:01:12]}  b6 {[%clk 0:01:47]} 25. Kg2 {[%clk 0:01:11]}  Bg7 {[%clk 0:01:43]} 26. Rd2 {[%clk 0:00:34]}  Rad8 {[%clk 0:01:35]} 27. Rad1 {[%clk 0:00:33]}  Rf8 {[%clk 0:01:20]} 28. Qe2 {[%clk 0:00:15]}  dxe4 {[%clk 0:01:10]} 29. Rxd8 {[%clk 0:00:12]}  Qf3+ {[%clk 0:01:10]} 30. Qxf3 {[%clk 0:00:09]}  exf3+ {[%clk 0:01:11]} 31. Kh3 {[%clk 0:00:08]}  Rxd8 {[%clk 0:01:12]} 32. Rxd8+ {[%clk 0:00:07]}  Nxd8 {[%clk 0:01:12]} 33. Kg4 {[%clk 0:00:07]}  e4 {[%clk 0:01:10]} 34. Bd4 {[%clk 0:00:05]}  e5 {[%clk 0:01:08]} 35. Be3 {[%clk 0:00:05]}  Kf7 {[%clk 0:01:04]} 36. Nd2 {[%clk 0:00:05]}  Ke6 {[%clk 0:00:50]} 37. Nxe4 {[%clk 0:00:06]}  Kd5 {[%clk 0:00:50]} 38. Kxf3 {[%clk 0:00:07]}  Ne6 {[%clk 0:00:46]} 39. Ke2 {[%clk 0:00:07]}  Kxe4 {[%clk 0:00:45]} 40. f3+ {[%clk 0:00:07]}  Kd5 {[%clk 0:00:46]} 41. Kd3 {[%clk 0:00:08]}  Nc7 {[%clk 0:00:25]} 42. c4+ {[%clk 0:00:08]}  Ke6 {[%clk 0:00:25]} 43. Ke4 {[%clk 0:00:08]}  Bf8 {[%clk 0:00:24]} 44. a3 {[%clk 0:00:09]}  Ne8 {[%clk 0:00:22]} 45. Kd3 {[%clk 0:00:08]}  Nf6 {[%clk 0:00:22]} 46. Bd2 {[%clk 0:00:08]}  Bd6 {[%clk 0:00:21]} 47. Be1 {[%clk 0:00:08]}  Kf5 {[%clk 0:00:20]} 48. Ke3 {[%clk 0:00:08]}  Ke6 {[%clk 0:00:18]} 49. g4 {[%clk 0:00:08]}  Bc7 {[%clk 0:00:15]} 50. Bh4 {[%clk 0:00:08]}  Ne8 {[%clk 0:00:15]} 51. Be1 {[%clk 0:00:06]}  Nd6 {[%clk 0:00:15]} 52. Kd3 {[%clk 0:00:06]}  a5 {[%clk 0:00:15]} 53. c5 {[%clk 0:00:05]}  bxc5 {[%clk 0:00:14]} 54. bxa5 {[%clk 0:00:06]}  c4+ {[%clk 0:00:13]} 55. Kc2 {[%clk 0:00:06]}  Kd5 {[%clk 0:00:13]} 56. a6 {[%clk 0:00:06]}  Bb6 {[%clk 0:00:13]} 57. Bb4 {[%clk 0:00:07]}  Nb5 {[%clk 0:00:13]} 58. a4 {[%clk 0:00:07]}  Nc7 {[%clk 0:00:14]} 59. a5 {[%clk 0:00:06]}  Ba7 {[%clk 0:00:14]} 60. Be7 {[%clk 0:00:06]}  Nxa6 {[%clk 0:00:14]} 61. Bd8 {[%clk 0:00:07]}  Kc6 {[%clk 0:00:08]} 62. Kc3 {[%clk 0:00:07]}  Kb5 {[%clk 0:00:09]} 63. Bb6 {[%clk 0:00:03]}  Bxb6 {[%clk 0:00:08]} 64. axb6 {[%clk 0:00:04]}  Nc5 {[%clk 0:00:08]} 65. g5 {[%clk 0:00:02]}  Nb7 {[%clk 0:00:08]} 66. f4 {[%clk 0:00:01]}  exf4 {[%clk 0:00:08]} 67. Kd4 {[%clk 0:00:02]}  Nd6 {[%clk 0:00:05]} 0-1


[Site "https://www.chess.com"]

[Event "Titled Tuesday Blitz July 26 Early 2022"]
[White "Melkumyan, Hrant"]
[Black "Sorkin, Igor"]
[WhiteFideId "13302485"]
[BlackFideId "2803283"]
[WhiteElo "2604"]
[BlackElo "2401"]
[Result "1-0"]
[Round "06"]
[TimeControl "180+1"]
[Date "2022.07.26"]
[WhiteClock "0:00:05"]
[BlackClock "0:00:04"]

1. Nf3 {[%clk 0:03:00]}  g6 {[%clk 0:02:59]} 2. d4 {[%clk 0:02:59]}  Bg7 {[%clk 0:02:59]} 3. c4 {[%clk 0:02:59]}  d6 {[%clk 0:03:00]} 4. Nc3 {[%clk 0:02:58]}  Nd7 {[%clk 0:03:00]} 5. e4 {[%clk 0:02:56]}  e5 {[%clk 0:03:00]} 6. Be2 {[%clk 0:02:55]}  Ne7 {[%clk 0:03:00]} 7. h4 {[%clk 0:02:53]}  h6 {[%clk 0:03:00]} 8. Be3 {[%clk 0:02:51]}  Nf6 {[%clk 0:02:59]} 9. dxe5 {[%clk 0:02:48]}  Ng4 {[%clk 0:02:59]} 10. e6 {[%clk 0:02:29]}  Bxe6 {[%clk 0:02:06]} 11. Bf4 {[%clk 0:02:27]}  Ne5 {[%clk 0:02:06]} 12. Nd2 {[%clk 0:02:14]}  c6 {[%clk 0:01:53]} 13. Be3 {[%clk 0:02:13]}  h5 {[%clk 0:01:50]} 14. Qc2 {[%clk 0:02:10]}  Ng4 {[%clk 0:01:43]} 15. Bg5 {[%clk 0:02:02]}  Qb6 {[%clk 0:01:38]} 16. Bxg4 {[%clk 0:02:03]}  Bxg4 {[%clk 0:01:36]} 17. O-O {[%clk 0:02:03]}  Qc7 {[%clk 0:01:32]} 18. Rae1 {[%clk 0:02:01]}  O-O {[%clk 0:01:32]} 19. Nd1 {[%clk 0:01:51]}  Rfe8 {[%clk 0:01:28]} 20. Ne3 {[%clk 0:01:51]}  Bd7 {[%clk 0:01:27]} 21. Nf3 {[%clk 0:01:45]}  Kh8 {[%clk 0:01:25]} 22. b3 {[%clk 0:01:44]}  Ng8 {[%clk 0:01:25]} 23. Rd1 {[%clk 0:01:35]}  Nf6 {[%clk 0:01:23]} 24. Nd2 {[%clk 0:01:35]}  Nh7 {[%clk 0:01:01]} 25. Bf4 {[%clk 0:01:33]}  Be5 {[%clk 0:00:55]} 26. Bxe5+ {[%clk 0:01:29]}  dxe5 {[%clk 0:00:56]} 27. c5 {[%clk 0:01:28]}  b5 {[%clk 0:00:50]} 28. cxb6 {[%clk 0:01:28]}  axb6 {[%clk 0:00:51]} 29. Ndc4 {[%clk 0:01:28]}  Be6 {[%clk 0:00:47]} 30. a4 {[%clk 0:01:21]}  Red8 {[%clk 0:00:43]} 31. Qc3 {[%clk 0:01:19]}  f6 {[%clk 0:00:43]} 32. Rc1 {[%clk 0:01:08]}  c5 {[%clk 0:00:41]} 33. Na3 {[%clk 0:01:00]}  Qc6 {[%clk 0:00:32]} 34. Nb5 {[%clk 0:00:54]}  Rd7 {[%clk 0:00:30]} 35. Qc2 {[%clk 0:00:50]}  Kg7 {[%clk 0:00:30]} 36. f4 {[%clk 0:00:42]}  exf4 {[%clk 0:00:29]} 37. Rxf4 {[%clk 0:00:43]}  Re8 {[%clk 0:00:28]} 38. Qf2 {[%clk 0:00:39]}  Bf7 {[%clk 0:00:28]} 39. Qf3 {[%clk 0:00:22]}  Bxb3 {[%clk 0:00:24]} 40. Nf5+ {[%clk 0:00:17]}  gxf5 {[%clk 0:00:23]} 41. Qxb3 {[%clk 0:00:18]}  Rxe4 {[%clk 0:00:21]} 42. Rxf5 {[%clk 0:00:16]}  Rg4 {[%clk 0:00:20]} 43. Qh3 {[%clk 0:00:11]}  Rd2 {[%clk 0:00:18]} 44. Rf3 {[%clk 0:00:12]}  Qd7 {[%clk 0:00:16]} 45. Rcf1 {[%clk 0:00:12]}  Rd1 {[%clk 0:00:13]} 46. g3 {[%clk 0:00:05]}  Rd2 {[%clk 0:00:11]} 47. R1f2 {[%clk 0:00:03]}  Rd1+ {[%clk 0:00:10]} 48. Rf1 {[%clk 0:00:03]}  Rd2 {[%clk 0:00:11]} 49. R3f2 {[%clk 0:00:04]}  Rxf2 {[%clk 0:00:11]} 50. Rxf2 {[%clk 0:00:03]}  Qd1+ {[%clk 0:00:12]} 51. Kh2 {[%clk 0:00:04]}  Qxa4 {[%clk 0:00:12]} 52. Nd6 {[%clk 0:00:03]}  Qd7 {[%clk 0:00:10]} 53. Nf5+ {[%clk 0:00:04]}  Kg6 {[%clk 0:00:10]} 54. Qf1 {[%clk 0:00:04]}  Nf8 {[%clk 0:00:09]} 55. Ne3 {[%clk 0:00:05]}  Nh7 {[%clk 0:00:07]} 56. Nxg4 {[%clk 0:00:05]}  Qxg4 {[%clk 0:00:08]} 57. Qd3+ {[%clk 0:00:06]}  Kg7 {[%clk 0:00:08]} 58. Qb3 {[%clk 0:00:05]}  Qd4 {[%clk 0:00:04]} 59. Qf3 {[%clk 0:00:04]}  c4 {[%clk 0:00:04]} 60. Re2 {[%clk 0:00:05]}  Kf7 {[%clk 0:00:04]} 61. Qxh5+ {[%clk 0:00:05]}  Kg8 {[%clk 0:00:04]} 62. Qg6+ {[%clk 0:00:04]}  Kf8 {[%clk 0:00:04]} 63. Re8# {[%clk 0:00:05]} 1-0


[Site "https://www.chess.com"]

[Event "Titled Tuesday Blitz July 26 Early 2022"]
[White "Molina, Roberto Junio Brito"]
[Black "Oye-Stromberg, Alexander"]
[WhiteFideId "2109450"]
[BlackFideId "1525999"]
[WhiteElo "2432"]
[BlackElo "1958"]
[Result "1-0"]
[Round "06"]
[TimeControl "180+1"]
[Date "2022.07.27"]
[WhiteClock "0:00:05"]
[BlackClock "0:00:06"]

1. d4 {[%clk 0:03:00]}  Nf6 {[%clk 0:02:59]} 2. Nf3 {[%clk 0:03:00]}  d5 {[%clk 0:02:59]} 3. e3 {[%clk 0:03:01]}  e6 {[%clk 0:02:59]} 4. Bd3 {[%clk 0:03:00]}  c5 {[%clk 0:02:58]} 5. b3 {[%clk 0:03:01]}  cxd4 {[%clk 0:02:54]} 6. exd4 {[%clk 0:02:59]}  Bb4+ {[%clk 0:02:53]} 7. c3 {[%clk 0:02:58]}  Bd6 {[%clk 0:02:53]} 8. O-O {[%clk 0:02:58]}  O-O {[%clk 0:02:50]} 9. Nbd2 {[%clk 0:02:56]}  Nc6 {[%clk 0:02:50]} 10. Re1 {[%clk 0:02:56]}  Bd7 {[%clk 0:02:45]} 11. Nf1 {[%clk 0:02:56]}  Rc8 {[%clk 0:02:46]} 12. Bg5 {[%clk 0:02:55]}  h6 {[%clk 0:02:45]} 13. Bh4 {[%clk 0:02:55]}  Be7 {[%clk 0:02:00]} 14. Ne5 {[%clk 0:02:47]}  Nxe5 {[%clk 0:01:59]} 15. dxe5 {[%clk 0:02:47]}  Ne8 {[%clk 0:01:57]} 16. Bxe7 {[%clk 0:02:46]}  Qxe7 {[%clk 0:01:58]} 17. Qd2 {[%clk 0:02:45]}  Nc7 {[%clk 0:01:57]} 18. f4 {[%clk 0:02:43]}  Nb5 {[%clk 0:01:54]} 19. Bxb5 {[%clk 0:02:41]}  Bxb5 {[%clk 0:01:53]} 20. Ng3 {[%clk 0:02:41]}  Qc5+ {[%clk 0:01:52]} 21. Re3 {[%clk 0:02:41]}  Rfd8 {[%clk 0:01:49]} 22. Rd1 {[%clk 0:02:40]}  a5 {[%clk 0:01:47]} 23. f5 {[%clk 0:02:32]}  a4 {[%clk 0:01:38]} 24. f6 {[%clk 0:02:25]}  axb3 {[%clk 0:01:32]} 25. axb3 {[%clk 0:02:25]}  g6 {[%clk 0:01:10]} 26. h4 {[%clk 0:02:12]}  Ra8 {[%clk 0:00:55]} 27. Kh2 {[%clk 0:02:07]}  Ra2 {[%clk 0:00:52]} 28. Qd4 {[%clk 0:01:59]}  Qxd4 {[%clk 0:00:48]} 29. Rxd4 {[%clk 0:02:00]}  Rc8 {[%clk 0:00:44]} 30. Rb4 {[%clk 0:01:39]}  Ba6 {[%clk 0:00:35]} 31. c4 {[%clk 0:01:14]}  dxc4 {[%clk 0:00:33]} 32. Ne4 {[%clk 0:01:13]}  c3 {[%clk 0:00:20]} 33. Nxc3 {[%clk 0:01:07]}  Rc2 {[%clk 0:00:15]} 34. Ne4 {[%clk 0:01:07]}  Bf1 {[%clk 0:00:15]} 35. Rg3 {[%clk 0:01:06]}  R8c7 {[%clk 0:00:11]} 36. h5 {[%clk 0:01:02]}  g5 {[%clk 0:00:11]} 37. Rd4 {[%clk 0:01:00]}  Be2 {[%clk 0:00:09]} 38. Rd8+ {[%clk 0:00:39]}  Kh7 {[%clk 0:00:09]} 39. Nxg5+ {[%clk 0:00:16]}  hxg5 {[%clk 0:00:09]} 40. Rxg5 {[%clk 0:00:17]}  Rc8 {[%clk 0:00:03]} 41. Rg7+ {[%clk 0:00:15]}  Kh6 {[%clk 0:00:03]} 42. Rd7 {[%clk 0:00:14]}  Bxh5 {[%clk 0:00:03]} 43. Rxb7 {[%clk 0:00:09]}  Bg6 {[%clk 0:00:04]} 44. Rb4 {[%clk 0:00:09]}  Rb2 {[%clk 0:00:04]} 45. Rg4 {[%clk 0:00:08]}  Kh5 {[%clk 0:00:04]} 46. Rg3 {[%clk 0:00:08]}  Rcc2 {[%clk 0:00:05]} 47. Rh3+ {[%clk 0:00:08]}  Kg5 {[%clk 0:00:05]} 48. Rg3+ {[%clk 0:00:09]}  Kf5 {[%clk 0:00:05]} 49. R7xg6 {[%clk 0:00:07]}  fxg6 {[%clk 0:00:06]} 50. f7 {[%clk 0:00:07]}  Rc8 {[%clk 0:00:06]} 51. Rf3+ {[%clk 0:00:07]}  Kxe5 {[%clk 0:00:07]} 52. f8=Q {[%clk 0:00:08]}  Rxf8 {[%clk 0:00:07]} 53. Rxf8 {[%clk 0:00:08]}  Rxb3 {[%clk 0:00:07]} 54. g3 {[%clk 0:00:06]}  Rf3 {[%clk 0:00:06]} 55. Rxf3 {[%clk 0:00:05]} 1-0


[Site "https://www.chess.com"]

[Event "Titled Tuesday Blitz July 26 Early 2022"]
[White "Munkhgal, Gombosuren"]
[Black "Goltseva, Ekaterina"]
[WhiteFideId "4901266"]
[BlackFideId "24173770"]
[WhiteElo "2576"]
[BlackElo "2086"]
[Result "1-0"]
[Round "06"]
[TimeControl "180+1"]
[Date "2022.07.27"]
[WhiteClock "0:00:17"]
[BlackClock "0:00:03"]

1. d4 {[%clk 0:03:00]}  d5 {[%clk 0:02:33]} 2. Bf4 {[%clk 0:03:00]}  Nf6 {[%clk 0:02:33]} 3. e3 {[%clk 0:02:59]}  c5 {[%clk 0:02:33]} 4. dxc5 {[%clk 0:02:59]}  Qa5+ {[%clk 0:02:32]} 5. Nc3 {[%clk 0:02:58]}  Qxc5 {[%clk 0:02:30]} 6. Nb5 {[%clk 0:02:48]}  Na6 {[%clk 0:02:28]} 7. a3 {[%clk 0:02:46]}  Bd7 {[%clk 0:02:22]} 8. b4 {[%clk 0:02:46]}  Qb6 {[%clk 0:02:15]} 9. Qd4 {[%clk 0:02:41]}  Qxd4 {[%clk 0:02:06]} 10. exd4 {[%clk 0:02:41]}  e6 {[%clk 0:02:01]} 11. Nf3 {[%clk 0:02:34]}  Be7 {[%clk 0:01:58]} 12. Ne5 {[%clk 0:02:34]}  O-O {[%clk 0:01:55]} 13. Bd3 {[%clk 0:02:22]}  Bxb5 {[%clk 0:01:52]} 14. Bxb5 {[%clk 0:02:21]}  Nc7 {[%clk 0:01:53]} 15. Bd3 {[%clk 0:02:21]}  Rac8 {[%clk 0:01:49]} 16. f3 {[%clk 0:02:18]}  a6 {[%clk 0:01:48]} 17. Kd2 {[%clk 0:02:15]}  Na8 {[%clk 0:01:47]} 18. Bg5 {[%clk 0:02:06]}  Nb6 {[%clk 0:01:43]} 19. c3 {[%clk 0:02:01]}  Ne4+ {[%clk 0:01:42]} 20. fxe4 {[%clk 0:01:59]}  Bxg5+ {[%clk 0:01:42]} 21. Kc2 {[%clk 0:01:59]}  Na4 {[%clk 0:01:40]} 22. Kb3 {[%clk 0:01:40]}  Nxc3 {[%clk 0:01:37]} 23. Nd7 {[%clk 0:01:36]}  Rfd8 {[%clk 0:01:31]} 24. Nc5 {[%clk 0:01:36]}  Nxe4 {[%clk 0:00:52]} 25. Bxe4 {[%clk 0:01:20]}  dxe4 {[%clk 0:00:53]} 26. Rad1 {[%clk 0:01:02]}  b6 {[%clk 0:00:32]} 27. Nxe4 {[%clk 0:01:00]}  Be3 {[%clk 0:00:31]} 28. d5 {[%clk 0:00:36]}  exd5 {[%clk 0:00:29]} 29. Ng3 {[%clk 0:00:34]}  g6 {[%clk 0:00:23]} 30. Rd3 {[%clk 0:00:34]}  d4 {[%clk 0:00:19]} 31. Rhd1 {[%clk 0:00:34]}  Rc1 {[%clk 0:00:12]} 32. Rxc1 {[%clk 0:00:18]}  Bxc1 {[%clk 0:00:13]} 33. Nf1 {[%clk 0:00:18]}  b5 {[%clk 0:00:11]} 34. Kc2 {[%clk 0:00:18]}  Bf4 {[%clk 0:00:10]} 35. g3 {[%clk 0:00:18]}  Rc8+ {[%clk 0:00:10]} 36. Kd1 {[%clk 0:00:17]}  Rc1+ {[%clk 0:00:09]} 37. Ke2 {[%clk 0:00:17]}  Be5 {[%clk 0:00:07]} 38. Nd2 {[%clk 0:00:18]}  Rc2 {[%clk 0:00:06]} 39. Kd1 {[%clk 0:00:18]}  Rc7 {[%clk 0:00:04]} 40. Nf3 {[%clk 0:00:18]}  Bf6 {[%clk 0:00:03]} 41. g4 {[%clk 0:00:18]}  Bg7 {[%clk 0:00:02]} 42. g5 {[%clk 0:00:17]}  Rc4 {[%clk 0:00:02]} 43. Nd2 {[%clk 0:00:15]}  Rc3 {[%clk 0:00:03]} 44. Ke2 {[%clk 0:00:16]}  Rxd3 {[%clk 0:00:03]} 45. Kxd3 {[%clk 0:00:16]}  h6 {[%clk 0:00:04]} 46. gxh6 {[%clk 0:00:16]}  Bxh6 {[%clk 0:00:04]} 47. Nb3 {[%clk 0:00:16]}  Be3 {[%clk 0:00:04]} 48. Nc5 {[%clk 0:00:16]}  Bc1 {[%clk 0:00:03]} 49. Nxa6 {[%clk 0:00:16]}  Bxa3 {[%clk 0:00:04]} 50. Kxd4 {[%clk 0:00:17]}  f5 {[%clk 0:00:04]} 51. Kc5 {[%clk 0:00:15]}  f4 {[%clk 0:00:05]} 52. Kd4 {[%clk 0:00:16]}  Kf7 {[%clk 0:00:04]} 53. Ke4 {[%clk 0:00:16]}  Bc1 {[%clk 0:00:03]} 54. Nc7 {[%clk 0:00:16]}  Kf6 {[%clk 0:00:04]} 55. Nxb5 {[%clk 0:00:16]}  Kg5 {[%clk 0:00:04]} 56. Nd4 {[%clk 0:00:15]}  Be3 {[%clk 0:00:04]} 57. b5 {[%clk 0:00:15]}  Kg4 {[%clk 0:00:02]} 58. b6 {[%clk 0:00:16]}  Bxd4 {[%clk 0:00:01]} 59. Kxd4 {[%clk 0:00:16]}  f3 {[%clk 0:00:02]} 60. Ke3 {[%clk 0:00:16]}  f2 {[%clk 0:00:03]} 61. Kxf2 {[%clk 0:00:17]} 1-0


[Site "https://www.chess.com"]

[Event "Titled Tuesday Blitz July 26 Early 2022"]
[White "Nakamura, Hikaru"]
[Black "Le, Tuan Minh"]
[WhiteFideId "2016192"]
[BlackFideId "12401153"]
[WhiteElo "2850"]
[BlackElo "2530"]
[Result "1-0"]
[Round "06"]
[TimeControl "180+1"]
[Date "2022.07.26"]
[WhiteClock "0:00:38"]
[BlackClock "0:00:12"]

1. e4 {[%clk 0:03:00]}  c5 {[%clk 0:03:00]} 2. g3 {[%clk 0:02:59]}  g6 {[%clk 0:03:00]} 3. Nf3 {[%clk 0:02:56]}  Nf6 {[%clk 0:02:57]} 4. Nc3 {[%clk 0:02:56]}  Nc6 {[%clk 0:02:54]} 5. d4 {[%clk 0:02:56]}  cxd4 {[%clk 0:02:55]} 6. Nxd4 {[%clk 0:02:57]}  Bg7 {[%clk 0:02:55]} 7. Nde2 {[%clk 0:02:56]}  O-O {[%clk 0:02:54]} 8. Bg2 {[%clk 0:02:56]}  d6 {[%clk 0:02:55]} 9. O-O {[%clk 0:02:56]}  Be6 {[%clk 0:02:54]} 10. h3 {[%clk 0:02:56]}  Rc8 {[%clk 0:02:54]} 11. Nd5 {[%clk 0:02:56]}  Bxd5 {[%clk 0:02:48]} 12. exd5 {[%clk 0:02:56]}  Ne5 {[%clk 0:02:49]} 13. b3 {[%clk 0:02:51]}  Qa5 {[%clk 0:02:34]} 14. c4 {[%clk 0:02:31]}  b5 {[%clk 0:02:24]} 15. cxb5 {[%clk 0:02:30]}  Qxb5 {[%clk 0:02:25]} 16. Nd4 {[%clk 0:02:30]}  Qa5 {[%clk 0:02:18]} 17. Bd2 {[%clk 0:02:00]}  Qa6 {[%clk 0:02:10]} 18. Re1 {[%clk 0:01:54]}  Rfe8 {[%clk 0:02:08]} 19. Qe2 {[%clk 0:01:37]}  Qb6 {[%clk 0:01:50]} 20. Be3 {[%clk 0:01:35]}  Qa5 {[%clk 0:01:51]} 21. f4 {[%clk 0:01:23]}  Ned7 {[%clk 0:01:38]} 22. Nc6 {[%clk 0:01:22]}  Qa3 {[%clk 0:01:36]} 23. Nxa7 {[%clk 0:01:18]}  Ra8 {[%clk 0:01:02]} 24. Nb5 {[%clk 0:01:08]}  Qa5 {[%clk 0:01:03]} 25. a4 {[%clk 0:01:08]}  Nh5 {[%clk 0:01:03]} 26. Bf2 {[%clk 0:01:00]}  Bxa1 {[%clk 0:00:59]} 27. Rxa1 {[%clk 0:01:01]}  Rac8 {[%clk 0:00:54]} 28. Kh2 {[%clk 0:00:57]}  Nhf6 {[%clk 0:00:49]} 29. Na7 {[%clk 0:00:52]}  Nxd5 {[%clk 0:00:41]} 30. Nxc8 {[%clk 0:00:51]}  Rxc8 {[%clk 0:00:41]} 31. Qb5 {[%clk 0:00:43]}  Qxb5 {[%clk 0:00:27]} 32. axb5 {[%clk 0:00:43]}  Rc2 {[%clk 0:00:27]} 33. Kg1 {[%clk 0:00:38]}  N5b6 {[%clk 0:00:12]} 34. Ra6 {[%clk 0:00:38]} 1-0


[Site "https://www.chess.com"]